bitfinex-derivatives/quotes_BTCF0:USTF0_20260314
["timestamp","ask_amount","ask_price","bid_price","bid_amount"]
[1773497617385,0.0014,70805.0,70791.0,0.06011882]
[1773497617573,0.0014,70805.0,70797.0,0.10248582]
[1773497617972,0.04933737,70803.0,70779.0,0.06011882]
[1773497618272,0.07362675,70800.0,70776.0,0.06055772]
[1773497618476,0.042373,70789.0,70776.0,0.05055772]
[1773497618784,0.00012266,70788.0,70776.0,0.05055772]
[1773497618988,0.00012266,70788.0,70778.0,0.06011882]
[1773497619183,0.00012266,70788.0,70780.0,0.06011882]
[1773497620979,0.042375,70785.0,70780.0,0.001]
[1773497621182,0.00012266,70788.0,70780.0,0.001]
[1773497621183,0.04249666,70788.0,70780.0,0.001]
[1773497621384,0.04249666,70788.0,70776.0,0.06111882]
[1773497621681,0.04249666,70788.0,70780.0,0.002]
[1773497622183,0.04249666,70788.0,70775.0,0.0014]
[1773497622486,0.07362675,70785.0,70773.0,0.00374]
[1773497622675,0.07362675,70783.0,70776.0,0.001]
[1773497623070,0.042379,70779.0,70769.0,0.0014]
[1773497623372,0.0014,70782.0,70769.0,0.06151882]
[1773497624173,0.043776,70783.0,70775.0,0.001]
[1773497624575,0.0014,70783.0,70775.0,0.001]
[1773497624783,0.042378,70781.0,70769.0,0.06251882]
[1773497624979,0.042378,70781.0,70769.0,0.06351882]
[1773497625182,0.042378,70781.0,70769.0,0.06251882]
[1773497625688,0.042378,70781.0,70769.0,0.06151882]
[1773497625878,0.042378,70781.0,70769.0,0.06251882]
[1773497626278,0.0014,70783.0,70769.0,0.06111882]
[1773497627285,0.042377,70782.0,70769.0,0.06211882]
[1773497627586,0.0014,70783.0,70764.0,0.00374]
[1773497627587,0.07362675,70780.0,70764.0,0.00374]
[1773497627786,0.12388796,70780.0,70764.0,0.00374]
[1773497627979,0.12388796,70780.0,70760.0,0.06011882]
[1773497627980,0.07362675,70774.0,70765.0,0.0014]
[1773497628180,0.00012266,70773.0,70760.0,0.06011882]
[1773497628591,0.07362675,70770.0,70761.0,0.0014]
[1773497628788,0.07362675,70770.0,70762.0,0.0014]
[1773497628977,0.042385,70769.0,70762.0,0.0014]
[1773497629184,0.07362675,70770.0,70755.0,0.06011882]
[1773497629487,0.042387,70766.0,70755.0,0.06011882]
[1773497629679,0.042387,70766.0,70760.0,0.0014]
[1773497630286,0.042385,70769.0,70760.0,0.0014]
[1773497630486,0.042385,70769.0,70761.0,0.0014]
[1773497632196,0.042385,70769.0,70762.0,0.0014]
[1773497632388,0.07362675,70770.0,70752.0,0.042395]
[1773497632693,0.042387,70766.0,70754.0,0.06346355]
[1773497632890,0.042388,70764.0,70754.0,0.06346355]
[1773497633092,0.042388,70764.0,70755.0,0.06486355]
[1773497633093,0.00017999,70763.0,70755.0,0.06486355]
[1773497634293,0.00017999,70763.0,70755.0,0.06586355]
[1773497634494,0.04256799,70763.0,70756.0,0.0014]
[1773497636094,0.04238,70777.0,70757.0,0.06346355]
[1773497636292,0.042381,70776.0,70763.0,0.06346355]
[1773497636493,0.042381,70776.0,70762.0,0.042388]
[1773497636494,0.042381,70776.0,70765.0,0.06346355]
[1773497636995,6.847e-05,70775.0,70765.0,0.06346355]
[1773497638695,0.04244947,70775.0,70765.0,0.06346355]
[1773497640397,6.847e-05,70775.0,70765.0,0.06346355]
[1773497640596,0.04244947,70775.0,70765.0,0.06346355]
[1773497641200,0.04244947,70775.0,70766.0,0.0014]
[1773497642001,6.847e-05,70775.0,70766.0,0.06486355]
[1773497642302,0.04244947,70775.0,70766.0,0.06346355]
[1773497642496,0.04244947,70775.0,70767.0,0.0014]
[1773497643995,6.847e-05,70775.0,70767.0,0.0014]
[1773497644394,0.04244947,70775.0,70767.0,0.0014]
[1773497644791,6.847e-05,70775.0,70766.0,0.06346355]
[1773497644998,6.847e-05,70775.0,70767.0,0.06486355]
[1773497645200,6.847e-05,70775.0,70768.0,0.0014]
[1773497645795,0.04238,70777.0,70768.0,0.0014]
[1773497646303,0.042381,70776.0,70767.0,0.06346355]
[1773497646503,0.042381,70776.0,70768.0,0.0014]
[1773497646803,0.07362675,70800.0,70757.0,0.10585455]
[1773497646804,0.042384,70771.0,70757.0,0.10585455]
[1773497647200,0.042384,70771.0,70759.0,0.06346355]
[1773497647507,0.042384,70771.0,70760.0,0.0014]
[1773497647709,0.07362675,70780.0,70761.0,0.0014]
[1773497647710,0.042382,70773.0,70761.0,0.0014]
[1773497648007,0.042382,70773.0,70762.0,0.0014]
[1773497648302,0.06816934,70779.0,70762.0,0.0014]
[1773497648508,0.042383,70773.0,70763.0,0.0014]
[1773497648900,0.042383,70773.0,70760.0,0.04239]
[1773497649203,0.042383,70773.0,70764.0,0.0014]
[1773497650593,0.001,70773.0,70751.0,0.06346355]
[1773497650798,0.001,70773.0,70750.0,0.00374]
[1773497650799,0.001,70773.0,70753.0,0.06346355]
[1773497651001,0.042383,70772.0,70759.0,0.04239]
[1773497651201,0.042383,70772.0,70760.0,0.0014]
[1773497651397,0.042383,70772.0,70761.0,0.0014]
[1773497651809,0.042383,70772.0,70759.0,0.04239]
[1773497652012,0.07375884,70770.0,70760.0,0.0014]
[1773497652398,0.11614284,70770.0,70761.0,0.0014]
[1773497652598,0.11614284,70770.0,70751.0,0.06346355]
[1773497652599,0.042384,70770.0,70762.0,0.0014]
[1773497652809,0.042384,70770.0,70763.0,0.0014]
[1773497654013,0.042385,70768.0,70764.0,0.0014]
[1773497654214,0.042385,70768.0,70765.0,0.0014]
[1773497654512,0.042385,70768.0,70766.0,0.0014]
[1773497654717,0.042386,70767.0,70753.0,0.042394]
[1773497654919,0.042387,70766.0,70754.0,0.0014]
[1773497655409,0.07375884,70770.0,70752.0,0.06346355]
[1773497655610,0.07375884,70770.0,70753.0,0.0014]
[1773497656113,0.07375884,70770.0,70752.0,0.06346355]
[1773497656307,0.07375884,70770.0,70753.0,0.0014]
[1773497656815,0.042388,70764.0,70753.0,0.0014]
[1773497657308,0.042388,70764.0,70753.0,0.0024]
[1773497658222,0.042389,70763.0,70754.0,0.0014]
[1773497658717,0.042387,70765.0,70754.0,0.0014]
[1773497658912,0.06816934,70773.0,70754.0,0.0014]
[1773497658913,0.07375884,70780.0,70759.0,0.06346355]
[1773497659119,0.042382,70774.0,70762.0,0.06346355]
[1773497659318,0.06816934,70787.0,70764.0,0.06346355]
[1773497659518,0.28790557,70786.0,70765.0,0.0014]
[1773497659720,0.07375884,70780.0,70765.0,0.0014]
[1773497659919,0.21973623,70779.0,70765.0,0.0014]
[1773497660218,0.21973623,70778.0,70765.0,0.0014]
[1773497660519,0.21973623,70777.0,70765.0,0.0014]
[1773497660721,0.07475884,70780.0,70765.0,0.0014]
[1773497661018,0.042382,70774.0,70765.0,0.0014]
[1773497661720,0.042382,70773.0,70765.0,0.0014]
[1773497662307,0.042381,70775.0,70765.0,0.0014]
[1773497662913,0.042382,70774.0,70765.0,0.0014]
[1773497665426,0.043382,70774.0,70765.0,0.0014]
[1773497665922,0.042382,70774.0,70765.0,0.0014]
[1773497666120,0.043382,70774.0,70765.0,0.0014]
[1773497666420,0.001,70774.0,70765.0,0.0014]
[1773497666726,0.042384,70771.0,70765.0,0.0014]
[1773497669129,0.06306751,70779.0,70765.0,0.0014]
[1773497669427,0.042382,70773.0,70765.0,0.0014]
[1773497669821,0.042382,70773.0,70761.0,0.06110984]
[1773497670024,0.042382,70773.0,70760.0,0.04239]
[1773497670025,0.042382,70773.0,70762.0,0.06250984]
[1773497670425,0.042381,70775.0,70762.0,0.10489884]
[1773497670634,0.07375884,70780.0,70763.0,0.06110984]
[1773497670818,0.21750754,70779.0,70763.0,0.06110984]
[1773497671021,0.042382,70773.0,70763.0,0.06110984]
[1773497671529,0.043382,70773.0,70763.0,0.06110984]
[1773497672038,0.042382,70773.0,70763.0,0.06110984]
[1773497673825,0.07375884,70790.0,70766.0,0.042386]
[1773497674016,0.04238,70778.0,70767.0,0.06110984]
[1773497675031,0.1336935,70790.0,70762.0,0.0014]
[1773497675032,0.042378,70781.0,70769.0,0.06110984]
[1773497675231,0.1346935,70790.0,70769.0,0.06110984]
[1773497675232,0.042379,70779.0,70770.0,0.0014]
[1773497675922,0.001,70778.0,70770.0,0.0014]
[1773497678037,0.042379,70779.0,70765.0,0.042387]
[1773497678337,0.042379,70779.0,70766.0,0.0014]
[1773497678736,0.001,70778.0,70766.0,0.043786]
[1773497679236,0.042379,70779.0,70766.0,0.043786]
[1773497679426,0.043379,70779.0,70766.0,0.043786]
[1773497679937,0.001,70778.0,70766.0,0.10489584]
[1773497680236,0.001,70778.0,70767.0,0.06110984]
[1773497681238,0.001,70778.0,70768.0,0.0014]
[1773497681439,0.043379,70779.0,70768.0,0.0014]
[1773497681829,0.042379,70779.0,70768.0,0.0014]
[1773497682739,0.042379,70779.0,70768.0,0.06250984]
[1773497684431,0.042377,70781.0,70769.0,0.06110984]
[1773497684735,0.042378,70780.0,70769.0,0.06110984]
[1773497686936,0.042378,70780.0,70770.0,0.0014]
[1773497688651,0.11613684,70780.0,70770.0,0.0014]
[1773497689749,0.07375884,70780.0,70770.0,0.0014]
[1773497689944,0.042376,70784.0,70772.0,0.06281215]
[1773497690145,0.07375884,70790.0,70774.0,0.06281215]
[1773497690346,0.042374,70788.0,70775.0,0.06281215]
[1773497690547,0.042373,70789.0,70778.0,0.06281215]
[1773497690855,0.042374,70787.0,70779.0,0.0014]
[1773497691052,0.042374,70787.0,70780.0,0.0014]
[1773497691254,0.001,70784.0,70780.0,0.0014]
[1773497691458,0.001,70784.0,70781.0,0.0014]
[1773497691752,0.042375,70786.0,70782.0,0.0014]
[1773497691955,0.042375,70786.0,70783.0,0.0014]
[1773497692148,0.042373,70788.0,70784.0,0.0014]
[1773497692346,0.042373,70788.0,70785.0,0.0014]
[1773497692539,0.042373,70788.0,70786.0,0.0014]
[1773497692745,0.042374,70787.0,70781.0,0.0014]
[1773497692951,0.042374,70787.0,70782.0,0.0014]
[1773497694552,0.001,70786.0,70782.0,0.0014]
[1773497695351,0.001,70786.0,70775.0,0.042381]
[1773497695557,0.001,70787.0,70781.0,0.0014]
[1773497695950,0.001,70787.0,70774.0,0.06246189]
[1773497695951,0.001,70787.0,70774.0,0.10484289]
[1773497696152,0.07375884,70784.0,70767.0,0.00374]
[1773497696356,0.07375884,70780.0,70770.0,0.042384]
[1773497697547,0.07375884,70780.0,70771.0,0.042383]
[1773497700664,0.07375884,70780.0,70769.0,0.042384]
[1773497701454,0.07375884,70780.0,70770.0,0.042384]
[1773497701862,0.07375884,70780.0,70771.0,0.043783]
[1773497703162,0.07375884,70780.0,70771.0,0.10624489]
[1773497705653,0.042376,70783.0,70772.0,0.06246189]
[1773497705854,0.01869,70791.0,70773.0,0.06246189]
[1773497706054,0.01869,70791.0,70786.0,0.06246189]
[1773497706256,0.042353,70822.0,70787.0,0.06386189]
[1773497706257,0.04769421,70811.0,70787.0,0.06386189]
[1773497706452,0.042369,70796.0,70788.0,0.06386189]
[1773497706852,0.042369,70796.0,70788.0,0.0014]
[1773497707064,0.001,70791.0,70788.0,0.0014]
[1773497707460,0.042369,70796.0,70788.0,0.0014]
[1773497707461,0.042369,70795.0,70788.0,0.0014]
[1773497708358,0.01869,70791.0,70788.0,0.0014]
[1773497709468,0.042369,70795.0,70788.0,0.0014]
[1773497710068,0.042369,70795.0,70788.0,0.00514]
[1773497710265,0.042369,70795.0,70788.0,0.00374]
[1773497710462,0.042369,70795.0,70789.0,0.0014]
[1773497710655,0.00374,70791.0,70789.0,0.0014]
[1773497713261,0.042369,70795.0,70789.0,0.0014]
[1773497713967,0.042369,70795.0,70783.0,0.042376]
[1773497714171,0.04237,70794.0,70787.0,0.00374]
[1773497715569,0.03997,70794.0,70787.0,0.00374]
[1773497716867,0.07371341,70800.0,70787.0,0.00374]
[1773497717876,0.042369,70795.0,70787.0,0.00374]
[1773497718376,0.04237,70794.0,70788.0,0.0014]
[1773497719377,0.042372,70791.0,70789.0,0.0014]
[1773497719592,0.042372,70791.0,70779.0,0.06246189]
[1773497719775,0.042372,70791.0,70780.0,0.0014]
[1773497719977,0.042372,70791.0,70784.0,0.00374]
[1773497720769,0.042372,70791.0,70785.0,0.0014]
[1773497720770,0.00374,70786.0,70785.0,0.0014]
[1773497723783,0.04237,70793.0,70785.0,0.0014]
[1773497724573,0.042371,70792.0,70785.0,0.0014]
[1773497726687,0.04237,70793.0,70785.0,0.0014]
[1773497727084,0.00374,70804.0,70789.0,0.05880387]
[1773497727282,0.042365,70801.0,70789.0,0.10117587]
[1773497727587,0.00374,70804.0,70789.0,0.05880387]
[1773497727785,0.042366,70801.0,70789.0,0.05880387]
[1773497727985,0.00374,70804.0,70789.0,0.05880387]
[1773497728178,0.07371341,70800.0,70789.0,0.05880387]
[1773497728578,0.07371341,70800.0,70790.0,0.0014]
[1773497728878,0.07371341,70800.0,70789.0,0.05880387]
[1773497729078,0.00374,70804.0,70792.0,0.05880387]
[1773497729279,0.00374,70804.0,70793.0,0.06020387]
[1773497729778,0.046104,70804.0,70793.0,0.06020387]
[1773497730488,0.042364,70804.0,70793.0,0.06020387]
[1773497731983,0.07371341,70810.0,70794.0,0.05880387]
[1773497732174,0.042363,70805.0,70794.0,0.05880387]
[1773497734085,0.04354637,70809.0,70793.0,0.0014]
[1773497734280,0.04354637,70809.0,70782.0,0.00374]
[1773497734281,0.042372,70790.0,70782.0,0.00374]
[1773497734482,0.11608441,70792.0,70783.0,0.0014]
[1773497734681,0.042371,70792.0,70783.0,0.0014]
[1773497735594,0.04237,70794.0,70784.0,0.0014]
[1773497735888,0.042371,70793.0,70784.0,0.0014]
[1773497737490,0.042369,70795.0,70784.0,0.0014]
[1773497739783,0.042368,70797.0,70784.0,0.043775]
[1773497739985,0.042369,70796.0,70784.0,0.043775]
[1773497740390,0.04237,70794.0,70784.0,0.0014]
[1773497742098,0.04237,70794.0,70769.0,0.31745585]
[1773497742099,0.05589754,70793.0,70769.0,0.31745585]
[1773497742401,0.12961095,70780.0,70770.0,0.0014]
[1773497742697,0.12961095,70780.0,70764.0,0.042387]
[1773497742997,0.042381,70775.0,70765.0,0.0014]
[1773497743490,0.042381,70775.0,70766.0,0.0014]
[1773497743689,0.042381,70775.0,70767.0,0.0014]
[1773497743891,0.04238,70777.0,70768.0,0.0014]
[1773497744096,0.04238,70777.0,70763.0,0.042388]
[1773497744292,0.042381,70776.0,70761.0,0.042389]
[1773497744507,0.05589754,70775.0,70762.0,0.0014]
[1773497744898,0.05589754,70775.0,70770.0,0.00374]
[1773497745090,0.05589754,70775.0,70771.0,0.0014]
[1773497745291,0.09827854,70775.0,70772.0,0.0014]
[1773497745492,0.00374,70772.0,70761.0,0.042389]
[1773497745692,0.00374,70772.0,70762.0,0.0014]
[1773497745994,0.00374,70772.0,70765.0,0.001]
[1773497746190,0.00374,70772.0,70766.0,0.0014]
[1773497746389,0.00374,70772.0,70765.0,0.001]
[1773497746589,0.00374,70772.0,70759.0,0.04239]
[1773497746795,0.00374,70772.0,70761.0,0.001]
[1773497746996,0.00374,70772.0,70756.0,0.05880387]
[1773497746997,0.042385,70769.0,70762.0,0.0014]
[1773497747195,0.07371341,70772.0,70748.0,0.05880387]
[1773497747396,0.042385,70769.0,70747.0,0.05880387]
[1773497747696,0.042385,70769.0,70743.0,0.00283642]
[1773497747697,0.042385,70769.0,70761.0,0.001]
[1773497748088,0.042385,70769.0,70762.0,0.0014]
[1773497748402,0.042385,70769.0,70762.0,0.0024]
[1773497748695,0.042385,70769.0,70763.0,0.0014]
[1773497748896,0.042385,70769.0,70762.0,0.001]
[1773497749087,0.042386,70768.0,70763.0,0.0014]
[1773497749291,0.042386,70768.0,70752.0,0.06254387]
[1773497749600,0.042386,70767.0,70753.0,0.043794]
[1773497749988,0.03288699,70771.0,70754.0,0.0014]
[1773497750198,0.042388,70764.0,70752.0,0.06254387]
[1773497750395,0.07371341,70762.0,70747.0,0.0548939]
[1773497750591,0.07371341,70762.0,70748.0,0.0562939]
[1773497750792,0.10653598,70770.0,70748.0,0.0562939]
[1773497750990,0.03282257,70769.0,70748.0,0.0562939]
[1773497751600,0.07371341,70760.0,70749.0,0.0014]
[1773497751793,0.042392,70757.0,70749.0,0.0014]
[1773497751993,0.042392,70757.0,70744.0,0.05676703]
[1773497752197,0.042392,70757.0,70745.0,0.0014]
[1773497752496,0.042392,70757.0,70754.0,0.001]
[1773497752696,0.042392,70757.0,70748.0,0.001]
[1773497752898,0.042392,70757.0,70749.0,0.0014]
[1773497753200,0.042392,70757.0,70749.0,0.002]
[1773497753398,0.042392,70757.0,70750.0,0.0014]
[1773497753593,0.042392,70757.0,70749.0,0.002]
[1773497753594,0.042392,70757.0,70751.0,0.0014]
[1773497754597,0.042392,70757.0,70752.0,0.0014]
[1773497754803,0.042392,70757.0,70753.0,0.0014]
[1773497754999,0.042392,70757.0,70748.0,0.001]
[1773497755193,0.042392,70757.0,70749.0,0.0014]
[1773497755702,0.042392,70757.0,70749.0,0.0024]
[1773497758309,0.07371341,70761.0,70749.0,0.001]
[1773497758310,0.03319659,70759.0,70749.0,0.001]
[1773497758503,0.03319659,70759.0,70750.0,0.0014]
[1773497758802,0.07371341,70761.0,70751.0,0.0014]
[1773497759007,0.042392,70757.0,70752.0,0.0014]
[1773497759528,0.042393,70756.0,70752.0,0.0014]
[1773497759802,0.042393,70756.0,70747.0,0.05676703]
[1773497759803,0.042393,70756.0,70753.0,0.0014]
[1773497760005,0.042393,70756.0,70747.0,0.05676703]
[1773497760006,0.042393,70756.0,70754.0,0.0014]
[1773497760201,0.03376026,70761.0,70749.0,0.0014]
[1773497760601,0.0014,70768.0,70726.0,0.04241]
[1773497760602,0.042403,70739.0,70726.0,0.04241]
[1773497760798,0.01121,70759.0,70728.0,0.05676703]
[1773497761001,0.01121,70759.0,70739.0,0.05676703]
[1773497761002,0.042395,70752.0,70739.0,0.05676703]
[1773497761206,0.042395,70752.0,70740.0,0.0014]
[1773497761502,0.0014,70758.0,70740.0,0.0014]
[1773497761699,0.02338736,70758.0,70740.0,0.0014]
[1773497762500,0.042396,70750.0,70741.0,0.0014]
[1773497762904,0.042397,70749.0,70741.0,0.0014]
[1773497763109,0.042397,70748.0,70741.0,0.0014]
[1773497763699,0.042398,70747.0,70741.0,0.0014]
[1773497764610,0.042399,70746.0,70742.0,0.0014]
[1773497764810,0.043398,70748.0,70735.0,0.042405]
[1773497765014,0.043398,70748.0,70736.0,0.0014]
[1773497765510,0.042398,70747.0,70737.0,0.0014]
[1773497765911,0.042399,70746.0,70737.0,0.0014]
[1773497766110,0.042399,70745.0,70737.0,0.0014]
[1773497766308,0.042399,70745.0,70734.0,0.00374]
[1773497766509,0.042399,70745.0,70735.0,0.0014]
[1773497766902,0.042403,70739.0,70736.0,0.0014]
[1773497767097,0.042403,70739.0,70737.0,0.0014]
[1773497767805,0.042403,70739.0,70728.0,0.05676703]
[1773497768001,0.042403,70739.0,70729.0,0.0014]
[1773497768404,0.0014,70751.0,70730.0,0.05676703]
[1773497768605,0.0014,70751.0,70734.0,0.05676703]
[1773497768800,0.042399,70745.0,70734.0,0.05676703]
[1773497769009,0.042399,70745.0,70731.0,0.042407]
[1773497769517,0.042401,70743.0,70730.0,0.05676703]
[1773497769914,0.042401,70743.0,70731.0,0.0014]
[1773497771714,0.042401,70742.0,70732.0,0.0014]
[1773497772909,0.042401,70742.0,70730.0,0.09917503]
[1773497773110,0.042401,70742.0,70731.0,0.0014]
[1773497774528,0.042401,70742.0,70730.0,0.05676703]
[1773497774706,0.0014,70751.0,70734.0,0.05676703]
[1773497774906,0.042398,70747.0,70734.0,0.05676703]
[1773497775114,0.042399,70745.0,70734.0,0.05676703]
[1773497775417,0.0424,70744.0,70734.0,0.05676703]
[1773497775914,0.042399,70746.0,70734.0,0.05676703]
[1773497776111,0.01496,70755.0,70734.0,0.05676703]
[1773497776317,0.042398,70748.0,70735.0,0.042404]
[1773497776511,0.042398,70747.0,70735.0,0.042404]
[1773497776711,0.07381752,70750.0,70736.0,0.0014]
[1773497776918,0.07381752,70750.0,70737.0,0.0014]
[1773497777110,0.07381752,70750.0,70738.0,0.0014]
[1773497777909,0.07381752,70750.0,70731.0,0.042407]
[1773497777910,0.09354932,70750.0,70731.0,0.042407]
[1773497778110,0.0197318,70749.0,70732.0,0.0014]
[1773497778419,0.042399,70745.0,70732.0,0.043806]
[1773497780616,0.01496,70755.0,70735.0,0.07381752]
[1773497780822,0.01496,70755.0,70732.0,0.0014]
[1773497780823,0.01496,70755.0,70743.0,0.05676703]
[1773497781021,0.01496,70755.0,70745.0,0.05676703]
[1773497781221,0.04239,70761.0,70744.0,0.0014]
[1773497781414,0.04239,70761.0,70745.0,0.05397164]
[1773497782321,0.042391,70759.0,70749.0,0.05397164]
[1773497782910,0.04712,70761.0,70749.0,0.05397164]
[1773497783116,0.04612,70761.0,70749.0,0.05397164]
[1773497785621,0.04712,70761.0,70749.0,0.05397164]
[1773497785819,0.04712,70761.0,70748.0,0.042397]
[1773497786021,0.042392,70758.0,70749.0,0.0014]
[1773497786417,0.00573,70761.0,70750.0,0.042396]
[1773497786624,0.00573,70761.0,70751.0,0.05397164]
[1773497787920,0.00473,70761.0,70751.0,0.05397164]
[1773497788622,0.00473,70761.0,70751.0,0.09636664]
[1773497789017,0.00473,70761.0,70752.0,0.05397164]
[1773497790328,0.042384,70770.0,70756.0,0.09636364]
[1773497790519,0.02816654,70778.0,70757.0,0.05537164]
[1773497790719,0.2080206,70777.0,70757.0,0.05537164]
[1773497791030,0.2080206,70776.0,70757.0,0.05537164]
[1773497791330,0.2080206,70775.0,70761.0,0.05397164]
[1773497791630,0.04238,70776.0,70763.0,0.05397164]
[1773497791829,0.00374,70768.0,70763.0,0.05397164]
[1773497792020,0.042381,70775.0,70763.0,0.05397164]
[1773497792730,0.042381,70775.0,70764.0,0.0014]
[1773497793924,0.042381,70775.0,70768.0,0.00374]
[1773497794127,0.001,70770.0,70768.0,0.00374]
[1773497794322,0.001,70770.0,70757.0,0.05397164]
[1773497794533,0.00474,70770.0,70758.0,0.0014]
[1773497794728,0.00474,70770.0,70758.0,0.05537164]
[1773497794933,0.00374,70770.0,70759.0,0.0014]
[1773497795130,0.00374,70770.0,70759.0,0.05537164]
[1773497795526,0.042384,70771.0,70759.0,0.05537164]
[1773497796029,0.001,70770.0,70759.0,0.05537164]
[1773497798031,0.001,70770.0,70760.0,0.07381752]
[1773497798229,0.001,70770.0,70762.0,0.05397164]
[1773497802738,0.001,70770.0,70763.0,0.0014]
[1773497802938,0.001,70770.0,70763.0,0.0558882]
[1773497803535,0.00374,70772.0,70763.0,0.0558882]
[1773497804130,0.00374,70772.0,70751.0,0.05450122]
[1773497804335,0.00374,70772.0,70753.0,0.05450122]
[1773497804541,0.00374,70772.0,70752.0,0.043794]
[1773497804542,0.00374,70772.0,70755.0,0.09689422]
[1773497804730,0.042385,70769.0,70758.0,0.05397164]
[1773497805031,0.042384,70771.0,70759.0,0.0014]
[1773497805431,0.042384,70771.0,70760.0,0.0014]
[1773497805835,0.042384,70771.0,70758.0,0.05397164]
[1773497806038,0.042384,70770.0,70759.0,0.0014]
[1773497806542,0.042384,70770.0,70758.0,0.05397164]
[1773497806743,0.042384,70770.0,70759.0,0.0014]
[1773497807040,0.042384,70770.0,70758.0,0.05397164]
[1773497807241,0.042384,70770.0,70759.0,0.0014]
[1773497807634,0.042384,70770.0,70760.0,0.0014]
[1773497807940,0.043384,70770.0,70760.0,0.0014]
[1773497808141,0.043384,70770.0,70761.0,0.0014]
[1773497808740,0.043384,70770.0,70762.0,0.0014]
[1773497809145,0.043384,70770.0,70763.0,0.0014]
[1773497809638,0.042384,70770.0,70763.0,0.0014]
[1773497809939,0.043384,70770.0,70763.0,0.0014]
[1773497810339,0.042384,70770.0,70762.0,0.0014]
[1773497812533,0.042384,70770.0,70758.0,0.042391]
[1773497812735,0.042384,70770.0,70761.0,0.0014]
[1773497812936,0.0014,70786.0,70764.0,0.04978504]
[1773497813247,0.0014,70786.0,70769.0,0.04978504]
[1773497813248,0.25036413,70780.0,70769.0,0.04978504]
[1773497813431,0.02194051,70799.0,70775.0,0.04978504]
[1773497813750,0.042375,70786.0,70776.0,0.05118504]
[1773497815444,0.002,70799.0,70776.0,0.05118504]
[1773497815749,0.0412154,70799.0,70777.0,0.04978504]
[1773497816642,0.001,70786.0,70777.0,0.04978504]
[1773497816845,0.001,70799.0,70782.0,0.04978504]
[1773497817041,0.001,70799.0,70787.0,0.04978504]
[1773497817239,0.001,70799.0,70780.0,0.07381752]
[1773497817240,0.002,70799.0,70788.0,0.05118504]
[1773497817434,0.002,70799.0,70789.0,0.0014]
[1773497817837,0.042368,70798.0,70789.0,0.0014]
[1773497818437,0.001,70799.0,70789.0,0.0014]
[1773497818750,0.14607331,70813.0,70789.0,0.0014]
[1773497818751,0.07381752,70820.0,70794.0,0.04978504]
[1773497819046,0.0014,70819.0,70795.0,0.04978504]
[1773497819253,0.10706272,70820.0,70797.0,0.04978504]
[1773497819440,0.10706272,70820.0,70799.0,0.04978504]
[1773497819653,0.10706272,70820.0,70800.0,0.0014]
[1773497819850,0.10706272,70820.0,70801.0,0.04978504]
[1773497819851,0.07521752,70820.0,70801.0,0.04978504]
[1773497820241,0.04236,70811.0,70801.0,0.04978504]
[1773497820441,0.04236,70811.0,70807.0,0.00374]
[1773497820637,0.04236,70811.0,70808.0,0.0014]
[1773497821151,0.00374,70810.0,70808.0,0.0014]
[1773497821743,0.042357,70815.0,70808.0,0.0014]
[1773497821948,0.042358,70814.0,70808.0,0.0014]
[1773497822147,0.042358,70814.0,70808.0,0.05118504]
[1773497822550,0.042359,70813.0,70808.0,0.05118504]
[1773497822948,0.001,70811.0,70808.0,0.05118504]
[1773497823155,0.001,70811.0,70808.0,0.0014]
[1773497823454,0.046099,70812.0,70808.0,0.0014]
[1773497824239,0.042359,70812.0,70808.0,0.0014]
[1773497826955,0.00374,70814.0,70808.0,0.0014]
[1773497830959,0.042356,70817.0,70808.0,0.05118504]
[1773497831460,0.042357,70816.0,70808.0,0.05118504]
[1773497831762,0.042357,70816.0,70811.0,0.00374]
[1773497832461,0.00374,70813.0,70811.0,0.00374]
[1773497832756,0.00374,70813.0,70809.0,0.04978504]
[1773497832947,0.00374,70813.0,70808.0,0.0014]
[1773497833151,0.042357,70816.0,70808.0,0.0014]
[1773497833352,0.04516085,70827.0,70808.0,0.0014]
[1773497833854,0.04542018,70829.0,70808.0,0.0014]
[1773497834054,0.042356,70818.0,70808.0,0.0014]
[1773497834361,0.042354,70820.0,70808.0,0.0014]
[1773497834547,0.00374,70815.0,70808.0,0.0014]
[1773497835153,0.042355,70819.0,70808.0,0.0014]
[1773497835463,0.042355,70819.0,70808.0,0.05118504]
[1773497835761,0.04549161,70829.0,70808.0,0.05118504]
[1773497835954,0.001,70829.0,70809.0,0.04978504]
[1773497836264,0.001,70827.0,70818.0,0.00373]
[1773497836565,0.042351,70825.0,70819.0,0.0014]
[1773497836754,0.042352,70824.0,70819.0,0.0014]
[1773497836954,0.00373,70820.0,70819.0,0.0014]
[1773497837159,0.042352,70824.0,70819.0,0.0014]
[1773497837665,0.001,70829.0,70819.0,0.0014]
[1773497837666,0.042351,70826.0,70819.0,0.0014]
[1773497837863,0.042352,70824.0,70811.0,0.042359]
[1773497838061,0.042354,70820.0,70812.0,0.0014]
[1773497838267,0.03884032,70825.0,70812.0,0.0014]
[1773497838268,0.042353,70822.0,70812.0,0.0014]
[1773497840258,0.042353,70822.0,70812.0,0.05118504]
[1773497840458,0.042353,70822.0,70816.0,0.00373]
[1773497841066,0.00373,70818.0,70816.0,0.00373]
[1773497843765,0.00373,70818.0,70812.0,0.0014]
[1773497844066,0.042354,70821.0,70812.0,0.0014]
[1773497845369,0.042352,70823.0,70812.0,0.0014]
[1773497845971,0.00373,70821.0,70812.0,0.0014]
[1773497846967,0.00070591,70831.0,70813.0,0.05122438]
[1773497847763,0.00070591,70831.0,70814.0,0.09358238]
[1773497848066,0.042351,70826.0,70814.0,0.09358238]
[1773497848272,0.042351,70825.0,70814.0,0.05122438]
[1773497848472,0.042351,70825.0,70819.0,0.00373]
[1773497848765,0.042351,70825.0,70820.0,0.0014]
[1773497849157,0.00373,70821.0,70820.0,0.0014]
[1773497852878,0.00373,70821.0,70802.0,0.25234376]
[1773497852879,0.042356,70817.0,70813.0,0.0014]